bitfinex-derivatives/quotes_SOLF0:USTF0_20250730
["timestamp","ask_amount","ask_price","bid_price","bid_amount"]
[1753845382126,2.94,181.69,181.68,3.18]
[1753845383329,2.94,181.69,181.68,8.685]
[1753845383518,5.5039,181.72,181.68,8.685]
[1753845383722,2.94,181.7,181.69,3.18]
[1753845384127,2.94,181.7,181.69,8.6847]
[1753845384833,2.94,181.71,181.7,3.18]
[1753845387229,2.94,181.71,181.65,3.18]
[1753845387621,2.94,181.71,181.67,5.5051]
[1753845387830,2.94,181.71,181.67,8.6851]
[1753845388728,2.94,181.71,181.68,8.685]
[1753845390430,2.94,181.7,181.67,5.5053]
[1753845390727,2.94,181.7,181.64,120.86]
[1753845391124,8.4446,181.7,181.64,120.86]
[1753845391324,7.55379769,181.75,181.62,3.18]
[1753845391528,2.94,181.73,181.62,3.18]
[1753845391827,2.94,181.69,181.65,8.6859]
[1753845392025,2.94,181.69,181.61,117.6]
[1753845392226,5.5057,181.66,181.61,117.6]
[1753845392428,2.94,181.65,181.61,117.6]
[1753845393027,2.94,181.69,181.63,3.18]
[1753845393230,2.94,181.69,181.64,5.5062]
[1753845393425,8.4448,181.69,181.64,5.5062]
[1753845393625,2.94,181.67,181.66,3.18]
[1753845393827,2.94,181.69,181.66,3.18]
[1753845394018,2.94,181.7,181.67,3.18]
[1753845394227,2.94,181.7,181.62,3.18]
[1753845394824,2.94,181.7,181.69,3.18]
[1753845395525,2.94,181.69,181.68,8.6849]
[1753845395727,2.94,181.69,181.68,3.18]
[1753845396532,2.94,181.69,181.67,5.5053]
[1753845396831,4.61379769,181.77,181.61,117.6]
[1753845396832,2.94,181.68,181.66,5.5056]
[1753845397032,2.94,181.67,181.66,8.6856]
[1753845397235,2.94,181.67,181.66,3.18]
[1753845397534,2.94,181.75,181.65,8.6857]
[1753845397728,2.94,181.73,181.65,8.6857]
[1753845397927,5.5045,181.7,181.65,8.6857]
[1753845398129,5.5045,181.7,181.61,117.6]
[1753845398130,2.94,181.69,181.66,8.6856]
[1753845399636,2.94,181.68,181.65,5.5058]
[1753845400137,2.94,181.68,181.62,3.18]
[1753845400333,2.94,181.68,181.66,5.5056]
[1753845401539,2.94,181.67,181.66,8.6856]
[1753845402730,2.94,181.67,181.65,5.5059]
[1753845402928,2.94,181.67,181.65,3.18]
[1753845403334,2.94,181.67,181.66,3.18]
[1753845403539,2.94,181.67,181.66,8.6856]
[1753845404029,5.505,181.69,181.65,5.5058]
[1753845404235,2.94,181.66,181.65,8.6858]
[1753845405233,2.94,181.66,181.65,5.5058]
[1753845407433,2.94,181.66,181.63,3.18]
[1753845407635,2.94,181.66,181.61,120.78]
[1753845407836,2.94,181.66,181.62,3.18]
[1753845408232,2.94,181.66,181.63,5.5065]
[1753845408233,8.4457,181.66,181.63,5.5065]
[1753845408435,2.94,181.65,181.63,5.5065]
[1753845408737,2.94,181.69,181.63,3.18]
[1753845408933,4.04080421,181.68,181.61,117.6]
[1753845409239,2.94,181.66,181.64,3.18]
[1753845409833,5.5051,181.68,181.64,3.18]
[1753845410033,4.63457289,181.72,181.65,3.18]
[1753845410238,2.94,181.66,181.65,3.18]
[1753845410436,2.94,181.66,181.65,8.6857]
[1753845411537,2.94,181.66,181.65,3.18]
[1753845411738,2.94,181.66,181.62,3.25]
[1753845412034,2.94,181.66,181.61,117.6]
[1753845412241,2.94,181.66,181.63,3.25]
[1753845412635,2.94,181.66,181.63,5.5065]
[1753845413943,4.63457289,181.72,181.63,5.5065]
[1753845414242,3.21,181.65,181.63,5.5065]
[1753845414442,3.21,181.71,181.62,3.25]
[1753845414640,3.21,181.68,181.62,3.25]
[1753845414843,3.21,181.71,181.62,3.25]
[1753845415041,7.25229139,181.7,181.69,3.25]
[1753845415445,3.21,181.7,181.69,3.25]
[1753845416240,3.21,181.7,181.67,5.5052]
[1753845416445,3.21,181.69,181.67,5.5052]
[1753845416643,3.21,181.69,181.61,121.07]
[1753845416846,3.21,181.69,181.62,3.25]
[1753845417047,3.21,181.68,181.62,3.25]
[1753845417738,3.21,181.68,181.66,5.5056]
[1753845417938,3.21,181.67,181.66,8.7556]
[1753845419850,3.21,181.67,181.66,5.5056]
[1753845420053,3.21,181.66,181.65,8.7558]
[1753845421752,3.21,181.67,181.66,3.25]
[1753845422452,3.21,181.67,181.64,3.25]
[1753845423153,3.21,181.67,181.64,8.7562]
[1753845423455,3.21,181.67,181.62,3.25]
[1753845424454,3.21,181.66,181.62,3.25]
[1753845424658,3.21,181.65,181.62,3.25]
[1753845424958,3.21,181.65,181.64,8.756]
[1753845426464,3.21,181.65,181.64,3.25]
[1753845427157,3.21,181.64,181.57,9.25360043]
[1753845427355,3.21,181.64,181.59,3.25]
[1753845427857,3.21,181.64,181.6,8.7572]
[1753845428364,3.21,181.64,181.61,5.5071]
[1753845429060,3.21,181.64,181.61,8.7571]
[1753845429863,3.21,181.64,181.62,5.5067]
[1753845430064,3.21,181.7,181.61,3.25]
[1753845430264,7.2737598,181.69,181.61,3.25]
[1753845430469,3.21,181.69,181.61,3.25]
[1753845431169,3.21,181.67,181.64,8.756]
[1753845431359,3.21,181.67,181.64,3.25]
[1753845432265,3.21,181.67,181.65,5.5059]
[1753845433068,3.21,181.67,181.66,5.5056]
[1753845433369,3.21,181.67,181.59,3.25]
[1753845434068,3.21,181.66,181.65,8.7557]
[1753845436966,3.21,181.69,181.65,3.25]
[1753845437164,7.84457289,181.73,181.65,3.25]
[1753845437365,4.63457289,181.78,181.65,3.25]
[1753845437564,3.21,181.74,181.65,9.25360043]
[1753845437770,3.21,181.74,181.66,3.25]
[1753845437975,3.21,181.74,181.71,5.5039]
[1753845438165,3.21,181.74,181.7,3.25]
[1753845438372,3.21,181.74,181.71,3.25]
[1753845438571,3.21,181.73,181.72,3.25]
[1753845438773,3.21,181.73,181.71,3.25]
[1753845438969,3.21,181.73,181.64,126.89360043]
[1753845439170,3.21,181.73,181.7,3.25]
[1753845440468,3.21,181.72,181.71,3.25]
[1753845441176,5.5033,181.74,181.64,117.64]
[1753845441368,3.06,181.71,181.7,3.21]
[1753845443368,3.06,181.71,181.7,8.7144]
[1753845444470,3.06,181.73,181.72,3.21]
[1753845444767,3.06,181.78,181.72,3.21]
[1753845446270,5.5022,181.78,181.74,5.5032]
[1753845446472,3.06,181.77,181.75,3.21]
[1753845446973,3.06,181.78,181.76,3.21]
[1753845447170,9.26705811,181.88,181.76,3.21]
[1753845447171,3.06,181.79,181.76,3.21]
[1753845448175,3.06,181.79,181.78,3.21]
[1753845448671,3.06,181.81,181.78,8.712]
[1753845448871,3.06,181.81,181.79,3.21]
[1753845449071,5.5006,181.83,181.79,8.7117]
[1753845449272,3.06,181.8,181.79,8.7117]
[1753845449474,3.06,181.8,181.79,3.21]
[1753845449970,3.06,181.8,181.77,3.21]
[1753845450275,3.06,181.79,181.78,3.21]
[1753845451377,3.06,181.79,181.78,8.7119]
[1753845451974,5.5005,181.83,181.79,5.5016]
[1753845452182,117.6,181.91,181.74,3.21]
[1753845452183,3.06,181.88,181.74,3.21]
[1753845452570,5.4999,181.85,181.81,3.21]
[1753845452772,3.06,181.84,181.81,3.21]
[1753845453880,3.06,181.84,181.81,8.711]
[1753845455077,3.06,181.84,181.82,5.5008]
[1753845455278,117.6,181.91,181.83,3.21]
[1753845455482,3.06,181.9,181.83,3.21]
[1753845455780,3.06,181.94,181.74,3.21]
[1753845456082,3.06,181.92,181.74,3.21]
[1753845456476,3.06,181.92,181.76,3.21]
[1753845456877,5.4983,181.91,181.76,3.21]
[1753845457081,3.06,181.9,181.76,3.21]
[1753845458781,3.06,181.9,181.87,5.499]
[1753845458983,3.06,181.9,181.87,8.709]
[1753845459686,3.06,181.9,181.87,3.21]
[1753845460279,3.06,181.9,181.87,8.7092]
[1753845460782,124.0,181.98,181.83,3.21]
[1753845460974,3.06,181.92,181.83,3.21]
[1753845462087,3.06,181.92,181.9,5.4984]
[1753845462284,117.54,181.99,181.82,117.52]
[1753845462480,3.06,182.0,181.83,3.21]
[1753845462686,3.06,182.0,181.82,117.52]
[1753845462687,3.06,181.96,181.92,3.21]
[1753845463488,3.06,181.97,181.88,3.21]
[1753845465285,3.06,181.95,181.91,3.21]
[1753845465481,3.06,181.95,181.92,3.21]
[1753845466391,3.06,181.95,181.93,5.4974]
[1753845466594,3.06,181.95,181.91,3.21]
[1753845466987,3.06,181.95,181.83,3.21]
[1753845467989,3.06,181.99,181.83,3.21]
[1753845468394,5.496,181.98,181.93,5.4972]
[1753845468690,3.06,181.97,181.93,8.7072]
[1753845468891,3.06,181.96,181.93,8.7072]
[1753845469093,3.06,181.96,181.94,5.4971]
[1753845469495,3.06,181.96,181.93,3.21]
[1753845469692,3.06,181.96,181.81,3.21]
[1753845469893,3.06,181.96,181.88,3.21]
[1753845470984,3.06,181.96,181.95,8.7069]
[1753845472301,3.06,181.96,181.95,5.4969]
[1753845474897,3.06,181.96,181.93,2.99]
[1753845476102,3.06,181.96,181.94,5.4969]
[1753845477306,3.06,181.96,181.95,5.4969]
[1753845480609,3.06,181.96,181.93,2.99]
[1753845480610,3.06,181.96,181.88,117.22]
[1753845480910,124.0,182.05,181.86,369.6]
[1753845480911,3.16,181.9,181.86,369.6]
[1753845481095,3.16,181.9,181.74,11.006]
[1753845481096,3.16,181.9,181.81,117.22]
[1753845481297,3.16,181.9,181.81,120.21]
[1753845481609,3.16,181.9,181.82,2.99]
[1753845482005,3.16,181.9,181.85,5.4996]
[1753845482205,3.16,181.9,181.81,117.22]
[1753845482206,3.16,181.9,181.83,2.99]
[1753845482401,3.16,181.87,181.83,2.99]
[1753845482597,3.16,181.87,181.83,5.5003]
[1753845482797,3.16,181.87,181.79,120.25]
[1753845482999,8.6595,181.87,181.8,2.99]
[1753845483203,3.16,181.86,181.8,2.99]
[1753845484712,3.16,181.86,181.83,5.5004]
[1753845484907,3.16,181.86,181.8,2.99]
[1753845486206,3.16,181.86,181.79,117.26]
[1753845486207,3.16,181.88,181.83,2.99]
[1753845486402,3.16,181.88,181.84,2.99]
[1753845486602,3.16,181.88,181.8,2.99]
[1753845486803,3.16,181.88,181.83,5.5002]
[1753845487010,3.16,181.88,181.8,2.99]
[1753845487306,3.16,181.86,181.82,5.5007]
[1753845487513,3.16,181.86,181.8,2.99]
[1753845488009,3.16,181.86,181.82,8.4906]
[1753845488208,3.16,181.86,181.82,2.99]
[1753845488510,3.16,181.86,181.83,2.99]
[1753845488718,3.16,181.85,181.79,117.26]
[1753845488908,3.16,181.85,181.8,2.99]
[1753845489605,3.16,181.85,181.83,5.5003]
[1753845490602,3.16,181.85,181.82,5.5008]
[1753845490806,3.16,181.85,181.81,2.99]
[1753845491314,3.16,181.85,181.82,2.99]
[1753845492210,3.16,181.85,181.83,5.5005]
[1753845492411,3.16,181.94,181.83,5.5005]
[1753845492613,3.16,181.92,181.83,5.5005]
[1753845492810,3.16,181.88,181.83,5.5005]
[1753845493214,5.4996,181.86,181.82,5.5008]
[1753845493509,3.16,181.85,181.82,2.99]
[1753845493711,4.55406698,181.95,181.83,5.5003]
[1753845493914,3.16,181.94,181.8,2.99]
[1753845494218,3.16,181.92,181.8,2.99]
[1753845494413,3.16,181.89,181.8,2.99]
[1753845496115,3.16,181.88,181.8,2.99]
[1753845496418,3.16,181.88,181.84,5.5001]
[1753845496612,3.16,181.88,181.8,2.99]
[1753845498220,3.16,181.88,181.85,8.4898]
[1753845499315,3.16,181.88,181.83,5.5002]
[1753845499509,3.16,181.88,181.81,2.99]
[1753845499715,3.16,181.88,181.8,117.4]
[1753845499909,3.16,181.86,181.81,2.99]
[1753845500119,3.16,181.86,181.82,2.99]
[1753845501415,3.16,181.86,181.83,5.5005]
[1753845502020,3.16,181.86,181.82,8.4907]
[1753845502223,8.6596,181.86,181.82,5.5007]
[1753845502415,3.1,181.85,181.82,5.5007]
[1753845502716,3.1,181.85,181.8,3.11]
[1753845502916,3.1,181.85,181.81,3.11]
[1753845503519,3.1,181.85,181.82,5.5005]
[1753845503919,3.1,181.85,181.82,8.6105]
[1753845504420,5.4998,181.86,181.82,5.5005]
[1753845504619,4.55406698,181.96,181.83,3.11]
[1753845504824,3.1,181.95,181.83,3.11]
[1753845505025,3.1,181.93,181.84,5.4999]
[1753845505320,3.1,181.87,181.84,5.4999]
[1753845505918,3.1,181.86,181.79,3.11]
[1753845506322,3.1,181.86,181.77,263.53815695]
[1753845506624,3.1,181.81,181.77,266.64815695]
[1753845506817,3.1,181.81,181.77,117.36]
[1753845507016,3.1,181.81,181.77,120.47]
[1753845507214,3.1,181.92,181.78,3.11]
[1753845507416,4.02524753,181.91,181.78,3.11]
[1753845507612,3.1,181.89,181.79,5.5016]
[1753845507813,3.1,181.87,181.77,117.36]
[1753845509116,3.1,181.87,181.77,122.8621]
[1753845509512,3.1,181.87,181.78,3.11]
[1753845510423,3.1,181.87,181.79,5.5016]
[1753845510723,3.1,181.87,181.79,8.6116]
[1753845511025,3.1,181.82,181.79,8.6116]
[1753845511622,3.1,181.81,181.8,3.11]
[1753845511819,3.1,181.8,181.78,3.11]
[1753845512125,3.1,181.8,181.79,8.6117]
[1753845512826,3.1,181.8,181.79,5.5017]
[1753845513729,3.1,181.8,181.79,8.6117]
[1753845515523,3.1,181.79,181.78,5.5019]
[1753845515730,3.1,181.79,181.77,120.47]
[1753845516024,3.1,181.8,181.77,125.9721]
[1753845516726,3.1,181.8,181.78,5.5019]
[1753845516923,3.1,181.8,181.77,120.47]
[1753845517127,8.6014,181.8,181.77,120.47]
[1753845517325,3.1,181.79,181.77,120.47]
[1753845517518,3.1,181.78,181.77,120.47]
[1753845518229,3.1,181.78,181.77,117.36]
[1753845518817,3.1,181.78,181.75,3.11]
[1753845519026,8.6023,181.78,181.73,120.43]
[1753845519222,3.1,181.77,181.74,3.11]
[1753845520129,5.5018,181.79,181.75,5.5029]
[1753845520330,3.1,181.78,181.75,5.5029]
[1753845520526,3.1,181.78,181.75,8.6129]
[1753845520731,5.502,181.78,181.75,8.6129]
[1753845520927,3.1,181.77,181.75,8.6129]
[1753845521125,5.5016,181.8,181.76,5.5024]
[1753845521327,4.55406698,181.88,181.73,117.32]
[1753845521534,7.13120992,181.87,181.78,3.11]
[1753845521726,5.5007,181.83,181.79,5.5015]
[1753845521933,3.1,181.82,181.79,8.6115]
[1753845522232,3.1,181.81,181.8,3.11]
[1753845522627,3.1,181.84,181.74,3.11]
[1753845522928,3.1,181.89,181.75,3.11]
[1753845523231,3.1,181.88,181.85,5.4998]
[1753845523533,3.1,181.88,181.84,3.11]
[1753845523720,8.599,181.88,181.84,8.61]
[1753845523925,3.1,181.87,181.84,3.11]
[1753845524126,3.1,181.86,181.85,3.11]
[1753845524534,3.1,181.86,181.85,8.6099]
[1753845525831,3.1,181.88,181.86,3.11]
[1753845526131,3.1,181.94,181.82,3.11]
[1753845526331,4.03900611,181.93,181.82,3.11]
[1753845526528,3.1,181.88,181.85,5.4997]
[1753845527527,3.1,181.87,181.83,3.11]
[1753845527930,3.1,181.87,181.85,5.4998]
[1753845528830,3.1,181.87,181.85,8.6098]
[1753845529227,5.499,181.88,181.85,8.6098]
[1753845529532,3.1,181.86,181.85,5.4998]
[1753845530130,3.1,181.86,181.85,8.6098]
[1753845531530,5.4987,181.89,181.85,8.6098]
[1753845531726,2.92,181.88,181.84,5.5001]
[1753845532129,8.4192,181.88,181.84,8.4301]
[1753845532328,2.92,181.87,181.84,8.4301]
[1753845533027,2.92,181.86,181.83,5.5004]
[1753845533236,2.92,181.86,181.8,2.93]
[1753845533730,2.92,181.93,181.82,8.4308]
[1753845533933,2.92,181.91,181.82,2.93]
[1753845534135,2.92,181.89,181.78,2.93]
[1753845534432,2.92,181.87,181.78,2.93]
[1753845535132,5.5003,181.84,181.81,5.5009]
[1753845535336,2.92,181.83,181.81,8.4309]
[1753845535636,2.92,181.82,181.81,8.4309]
[1753845536634,2.92,181.91,181.8,2.93]
[1753845536935,2.92,181.89,181.76,2.93]
[1753845537130,5.5007,181.83,181.79,5.5015]
[1753845537336,2.92,181.82,181.79,8.4315]
[1753845538035,2.92,181.81,181.8,2.93]
[1753845538837,2.92,181.81,181.8,8.4314]
[1753845541237,2.92,181.81,181.8,2.93]
[1753845541439,2.92,181.83,181.8,2.93]
[1753845541734,4.55406698,181.91,181.76,2.93]
[1753845541735,2.92,181.9,181.76,2.93]
[1753845541932,4.03727983,181.89,181.76,2.93]
[1753845542131,2.92,181.84,181.81,8.4309]
[1753845542731,2.92,181.84,181.77,2.93]
[1753845543435,5.5008,181.82,181.78,5.5019]
[1753845543636,2.92,181.81,181.8,2.93]
[1753845545745,2.92,181.81,181.79,5.5017]
[1753845545937,2.92,181.81,181.78,8.4319]
[1753845546452,4.55406698,181.9,181.76,2.93]
[1753845546649,2.92,181.8,181.76,2.93]
[1753845547549,2.92,181.79,181.76,8.4325]
[1753845547750,2.92,181.79,181.76,5.5025]
[1753845548652,2.92,181.79,181.76,8.4325]
[1753845549254,2.92,181.78,181.75,117.38]
[1753845549554,2.92,181.78,181.68,369.76]
[1753845549751,2.92,181.76,181.66,146.26587551]
[1753845549951,2.92,181.74,181.6,9.25360043]
[1753845550153,2.92,181.72,181.61,2.93]
[1753845550347,2.92,181.67,181.55,9.25360043]
[1753845550561,2.92,181.67,181.56,117.8]
[1753845550757,5.5062,181.64,181.57,2.93]
[1753845550950,2.92,181.69,181.57,2.93]
[1753845551153,2.92,181.69,181.56,117.8]
[1753845551354,2.92,181.65,181.57,2.93]
[1753845552350,124.0,181.74,181.64,5.5059]
[1753845552557,2.92,181.73,181.64,2.93]
[1753845552946,2.92,181.72,181.63,2.93]
[1753845553354,5.5025,181.77,181.63,2.93]
[1753845553562,2.92,181.74,181.63,2.93]
[1753845554054,2.92,181.73,181.71,2.93]
[1753845554247,2.92,181.73,181.72,2.93]
[1753845554452,124.0,181.82,181.72,2.93]
[1753845554653,6.94033355,181.81,181.69,2.93]
[1753845554853,2.92,181.79,181.69,2.93]
[1753845555154,2.92,181.77,181.67,8.4353]
[1753845556355,2.92,181.71,181.67,8.4353]
[1753845556555,2.92,181.7,181.67,8.4353]
[1753845556755,2.92,181.69,181.68,2.93]
[1753845557062,2.92,181.69,181.68,8.435]
[1753845557254,2.92,181.73,181.67,2.93]
[1753845557660,2.92,181.73,181.71,2.93]
[1753845557862,2.92,181.72,181.71,2.93]
[1753845558160,2.92,181.74,181.71,2.93]
[1753845558362,2.92,181.74,181.72,2.93]
[1753845558560,2.92,181.73,181.72,2.93]
[1753845558752,369.78,181.83,181.72,2.93]
[1753845558957,2.92,181.74,181.72,2.93]
[1753845559664,2.92,181.73,181.72,2.93]
[1753845560757,2.92,181.73,181.71,5.504]
[1753845561064,2.92,181.73,181.71,8.434]
[1753845562859,2.92,181.73,181.71,5.504]
[1753845563064,2.92,181.73,181.72,3.23]
[1753845563263,2.92,181.73,181.71,5.504]
[1753845563564,2.92,181.73,181.71,8.734]
[1753845564461,2.96,181.75,181.73,3.23]
[1753845564767,2.96,181.75,181.72,5.5038]
[1753845564962,2.96,181.75,181.74,3.23]
[1753845565265,2.96,181.75,181.73,3.23]
[1753845565456,2.96,181.74,181.73,3.23]
[1753845565663,2.96,181.73,181.71,8.734]
[1753845565861,2.96,181.74,181.71,8.734]
[1753845566865,5.5029,181.75,181.71,8.734]
[1753845567064,2.96,181.72,181.71,8.734]
[1753845569867,2.96,181.72,181.71,5.504]
[1753845570270,2.96,181.72,181.71,8.734]
[1753845576175,2.96,181.81,181.61,3.23]
[1753845576372,2.96,181.79,181.57,3.23]
[1753845576568,16.52,181.77,181.53,9.25360043]
[1753845576772,2.96,181.75,181.56,3.23]
[1753845577172,2.96,181.62,181.58,5.508]
[1753845577473,2.96,181.62,181.59,3.23]
[1753845578067,2.96,181.61,181.59,3.23]
[1753845578273,2.96,181.72,181.56,3.23]
[1753845578469,2.96,181.64,181.56,3.23]
[1753845579475,5.5067,181.63,181.56,3.23]
[1753845579776,2.96,181.62,181.56,3.23]
[1753845581278,2.96,181.62,181.59,5.5075]
[1753845581478,5.5063,181.64,181.6,3.23]
[1753845581680,2.96,181.61,181.6,3.23]
[1753845582280,2.96,181.61,181.6,8.7374]
[1753845582677,2.96,181.63,181.61,3.23]
[1753845582872,2.96,181.64,181.63,3.23]
[1753845583077,2.96,181.72,181.63,3.23]
[1753845583273,5.5045,181.7,181.55,119.07836087]
[1753845583576,2.96,181.69,181.56,3.23]
[1753845584071,2.96,181.69,181.67,5.5053]
[1753845584277,2.96,181.69,181.56,3.23]
[1753845584477,2.96,181.69,181.58,3.23]
[1753845585278,2.96,181.69,181.66,5.5054]
[1753845585474,2.96,181.68,181.66,8.7354]
[1753845585879,2.96,181.68,181.67,8.7353]
[1753845586174,2.96,181.68,181.58,3.23]
[1753845586376,2.96,181.67,181.66,5.5055]
[1753845586975,2.96,181.67,181.66,8.7355]
[1753845587574,246.6478876,181.78,181.58,3.23]
[1753845587778,2.96,181.76,181.58,3.23]
[1753845587978,2.96,181.74,181.58,3.23]
[1753845588181,2.96,181.71,181.59,3.23]
[1753845588378,2.96,181.69,181.57,3.23]
[1753845588579,2.96,181.67,181.58,5.5078]
[1753845588780,2.96,181.67,181.58,3.23]
[1753845589385,5.5059,181.66,181.61,5.5069]
[1753845589586,2.96,181.65,181.61,8.7369]
[1753845590584,2.96,181.72,181.57,3.23]
[1753845590785,4.03017899,181.71,181.57,3.23]
[1753845590981,5.5049,181.69,181.64,5.506]
[1753845591181,3.11,181.68,181.65,3.23]
[1753845591378,4.5878876,181.77,181.67,8.6253]
[1753845591579,3.11,181.69,181.67,8.6253]
[1753845592386,3.11,181.69,181.68,8.625]
[1753845592777,4.5878876,181.77,181.65,3.12]
[1753845592984,7.14639007,181.76,181.65,3.12]
[1753845593178,3.11,181.75,181.65,3.12]
[1753845593378,8.613,181.75,181.65,3.12]
[1753845593587,3.11,181.74,181.65,3.12]
[1753845595593,5.5035,181.74,181.7,5.5044]
[1753845595778,3.11,181.73,181.66,3.12]
[1753845597289,3.11,181.72,181.66,3.12]
[1753845598292,8.6139,181.72,181.68,5.505]
[1753845598494,3.11,181.71,181.68,5.505]
[1753845600594,8.6141,181.71,181.67,5.5052]
[1753845600793,3.11,181.7,181.64,3.12]
[1753845600991,3.11,181.7,181.63,118.0]
[1753845602105,3.11,181.7,181.64,3.12]
[1753845602414,3.11,181.7,181.67,5.5053]
[1753845602706,4.5878876,181.78,181.66,3.12]
[1753845602901,3.11,181.77,181.66,3.12]
[1753845603105,3.11,181.75,181.66,3.12]
[1753845603315,3.11,181.73,181.71,5.504]
[1753845603609,3.11,181.72,181.71,8.624]
[1753845603808,3.11,181.72,181.71,5.504]
[1753845606210,3.11,181.72,181.7,5.5043]
[1753845606410,3.11,181.71,181.62,3.12]
[1753845606709,3.11,181.71,181.61,370.0]
[1753845606913,3.11,181.65,181.55,10.2119613]
[1753845607111,3.11,181.65,181.56,3.12]
[1753845607412,3.11,181.65,181.53,3.12]
[1753845607610,3.11,181.65,181.54,3.12]
[1753845607809,3.11,181.65,181.56,3.12]
[1753845608210,5.5057,181.66,181.62,5.5068]
[1753845608414,3.11,181.64,181.62,8.6268]
[1753845608720,3.11,181.63,181.62,8.6268]
[1753845609215,3.11,181.63,181.62,5.5068]
[1753845609410,3.11,181.62,181.61,5.5071]
[1753845610416,3.11,181.62,181.61,8.6271]
[1753845615917,3.11,181.64,181.62,5.5067]
[1753845616121,3.11,181.63,181.62,5.5067]
[1753845618929,3.11,181.65,181.56,3.12]
[1753845619122,122.9878876,181.75,181.56,3.12]
[1753845619323,3.11,181.67,181.56,3.12]
[1753845620528,3.11,181.66,181.56,3.12]
[1753845620731,3.11,181.66,181.63,5.5063]
[1753845620931,3.11,181.66,181.63,8.6263]
[1753845621322,5.5051,181.68,181.64,5.5061]
[1753845621529,3.14,181.73,181.63,3.12]
[1753845621823,3.14,181.69,181.63,3.12]
[1753845622229,8.6449,181.69,181.63,3.12]
[1753845622431,3.14,181.68,181.63,3.12]
[1753845622826,3.14,181.68,181.64,8.546]
[1753845623028,3.14,181.67,181.57,3.04]
[1753845623428,5.5082,181.58,181.55,0.95846645]
[1753845623623,3.14,181.57,181.53,3.04]
[1753845623823,27.5285,181.71,181.53,3.04]
[1753845623824,3.14,181.7,181.53,3.04]
[1753845624030,3.14,181.68,181.52,3.04]
[1753845624232,3.14,181.66,181.52,3.04]
[1753845624424,3.14,181.66,181.51,9.25360043]
[1753845624624,3.14,181.66,181.52,12.29360043]